[Event "EYCC Girls U10 2021"]
[Site "Tornelo"]
[Date "2021.10.15"]
[Round "7.1"]
[White "Bashirli, Saadat"]
[Black "Preobrazhenskaya, Diana"]
[Result "0-1"]
[ECO "B52"]
[WhiteElo "1284"]
[BlackElo "1764"]
[Annotator "NA RC"]
[PlyCount "96"]
[EventDate "2021.10.15"]
[EventType "swiss"]
[EventCountry "NET"]
[SourceTitle "playchess.com"]
[Source "ChessBase"]
[SourceQuality "1"]
[TimeControl "5400+30"]

1. e4 {[%emt 0:00:30]} c5 {[%emt 0:00:39]} 2. Nf3 {[%emt 0:00:06]} d6 {[%emt 0:00:05]} 3. Bb5+ {[%emt 0:00:04]} Bd7 {[%emt 0:00:08]} 4. Bxd7+ {[%emt 0:00:05]} Qxd7 {[%emt 0:00:05]} 5. c4 {[%emt 0:00:05]} Nf6 {[%emt 0:02:06]} 6. Nc3 {[%emt 0:00:26]} Nc6 {[%emt 0:01:15]} 7. O-O {[%emt 0:00:28]} g6 {[%emt 0:00:38]} 8. d4 {[%emt 0:00:13]} cxd4 {[%emt 0:00:35]} 9. Nxd4 {[%emt 0:00:06]} Bg7 {[%emt 0:01:03]} 10. Be3 {[%emt 0:05:43]} Ng4 {[%emt 0:04:09]} 11. Nd5 {[%emt 0:08:37]} Nxe3 {[%emt 0:04:04]} 12. fxe3 {[%emt 0:00:24]} O-O {[%emt 0:01:16]} 13. Qd2 {[%emt 0:02:56]} Rac8 {[%emt 0:03:48]} 14. Rac1 {[%emt 0:01:59]} Ne5 {[%emt 0:02:31]} 15. b3 {[%emt 0:01:20]} Ng4 {[%emt 0:14:15]} 16. h3 {[%emt 0:03:19]} e6 {[%emt 0:01:51]} 17. hxg4 {[%emt 0:04:52]} exd5 {[%emt 0:00:26]} 18. exd5 {[%emt 0:00:22]} Qxg4 {[%emt 0:00:21]} 19. Rf4 {[%emt 0:05:23]} Qg5 {[%emt 0:05:30]} 20. Rcf1 {[%emt 0:01:14]} Rce8 {[%emt 0:01:30]} 21. Qd3 {[%emt 0:07:30]} Qe5 {[%emt 0:03:38]} 22. R4f3 {[%emt 0:03:07]} Re7 {[%emt 0:03:07]} 23. b4 {[%emt 0:02:56]} Bh6 {[%emt 0:01:55]} 24. Re1 {[%emt 0:01:13]} Rfe8 {[%emt 0:00:36]} 25. Nc2 {[%emt 0:05:18]} Qe4 {[%emt 0:04:13]} 26. Qe2 {[%emt 0:01:52]} b5 {[%emt 0:05:49]} 27. c5 {[%emt 0:03:00]} dxc5 {[%emt 0:05:31]} 28. bxc5 {[%emt 0:00:25]} Qxd5 {[%emt 0:00:43]} 29. Qxb5 {[%emt 0:00:59]} Rc8 {[%emt 0:01:23]} 30. Qb2 {[%emt 0:17:06]} Bg7 {[%emt 0:04:04]} 31. Qb1 {[%emt 0:01:15]} Qxc5 {[%emt 0:00:42]} 32. Rf2 {[%emt 0:00:21]} Qh5 {[%emt 0:06:05]} 33. Nd4 {[%emt 0:03:36]} Be5 {[%emt 0:02:13]} 34. Qb4 {[%emt 0:02:08]} Rec7 {[%emt 0:03:56]} 35. Rf3 {[%emt 0:03:51]} Qh2+ {[%emt 0:02:35]} 36. Kf1 {[%emt 0:00:44]} Bg3 {[%emt 0:01:18]} 37. Rd1 {[%emt 0:01:30]} Qh1+ {[%emt 0:03:02]} 38. Ke2 {[%emt 0:00:05]} Qxg2+ {[%emt 0:04:48]} 39. Kd3 {[%emt 0:00:14]} Rd8 {[%emt 0:01:10]} 40. Qb3 {[%emt 0:05:18]} Qxf3 {[%emt 0:01:13]} 41. Rd2 {[%emt 0:00:36]} Qf1+ {[%emt 0:02:03]} 42. Re2 {[%emt 0:00:24]} Be1 {[%emt 0:01:19]} 43. Ke4 {[%emt 0:01:14]} Re8+ {[%emt 0:01:11]} 44. Kd5 {[%emt 0:00:32]} Qh1+ {[%emt 0:00:42]} 45. e4 {[%emt 0:00:21]} Qh4 {[%emt 0:01:23]} 46. Nc6 {[%emt 0:01:26]} Qh5+ {[%emt 0:00:33]} 47. Kd6 {[%emt 0:00:10]} Rxc6+ {[%emt 0:00:37]} 48. Kxc6 {[%emt 0:00:07]} Qxe2 {[%emt 0:00:19]} 0-1

[Event "EYCC Girls U10 2021"]
[Site "Tornelo"]
[Date "2021.10.15"]
[Round "7.2"]
[White "Blinova, Sofia"]
[Black "Zeybek, Kayla Nil"]
[Result "1-0"]
[ECO "C01"]
[WhiteElo "1297"]
[BlackElo "1221"]
[Annotator "NA RC"]
[PlyCount "105"]
[EventDate "2021.10.15"]
[EventType "swiss"]
[EventCountry "NET"]
[SourceTitle "playchess.com"]
[Source "ChessBase"]
[SourceQuality "1"]
[TimeControl "5400+30"]

1. e4 {[%emt 0:00:30]} e6 {[%emt 0:00:33]} 2. d4 {[%emt 0:00:05]} d5 {[%emt 0:00:03]} 3. exd5 {[%emt 0:00:03]} exd5 {[%emt 0:00:03]} 4. c3 {[%emt 0:00:05]} Bd6 {[%emt 0:00:07]} 5. Nf3 {[%emt 0:00:13]} Bg4 {[%emt 0:00:06]} 6. Be2 {[%emt 0:00:44]} Nc6 {[%emt 0:06:15]} 7. Bg5 {[%emt 0:01:22]} f6 {[%emt 0:00:05]} 8. Bh4 {[%emt 0:00:22]} Nge7 {[%emt 0:00:06]} 9. O-O {[%emt 0:01:39]} Qd7 {[%emt 0:00:22]} 10. Bg3 {[%emt 0:01:29]} O-O-O {[%emt 0:00:34]} 11. Nbd2 {[%emt 0:06:50]} g5 {[%emt 0:00:40]} 12. Re1 {[%emt 0:01:41]} h5 {[%emt 0:00:54]} 13. Bxd6 {[%emt 0:01:28]} Qxd6 {[%emt 0:00:05]} 14. g3 {[%emt 0:03:34]} Nf5 {[%emt 0:02:13]} 15. Bf1 {[%emt 0:04:59]} h4 {[%emt 0:02:36]} 16. Bg2 {[%emt 0:04:34]} hxg3 {[%emt 0:01:41]} 17. fxg3 {[%emt 0:01:04]} Bh3 {[%emt 0:03:30]} 18. Bxh3 {[%emt 0:04:59]} Rxh3 {[%emt 0:00:12]} 19. Ne5 {[%emt 0:06:16]} Nxe5 {[%emt 0:02:05]} 20. dxe5 {[%emt 0:00:38]} Qb6+ {[%emt 0:01:40]} 21. Kf1 {[%emt 0:05:42]} Ne3+ {[%emt 0:00:52]} 22. Rxe3 {[%emt 0:00:28]} Qxe3 {[%emt 0:00:45]} 23. Qg4+ {[%emt 0:00:07]} Kb8 {[%emt 0:06:41]} 24. Qxh3 {[%emt 0:00:29]} Qxd2 {[%emt 0:07:24]} 25. e6 {[%emt 0:00:41]} Qxb2 {[%emt 0:06:47]} 26. Re1 {[%emt 0:00:32]} Qb5+ {[%emt 0:02:18]} 27. Kf2 {[%emt 0:00:48]} Qc5+ {[%emt 0:02:12]} 28. Kg2 {[%emt 0:01:02]} Qe7 {[%emt 0:01:19]} 29. Qh5 {[%emt 0:01:01]} Kc8 {[%emt 0:01:39]} 30. Qg4 {[%emt 0:01:11]} Rf8 {[%emt 0:08:32]} 31. h4 {[%emt 0:01:07]} f5 {[%emt 0:01:02]} 32. Qxg5 {[%emt 0:02:14]} Qxg5 {[%emt 0:00:25]} 33. hxg5 {[%emt 0:00:03]} Rg8 {[%emt 0:08:50]} 34. Kf3 {[%emt 0:00:15]} Kd8 {[%emt 0:00:20]} 35. Kf4 {[%emt 0:00:13]} Ke7 {[%emt 0:00:14]} 36. Kxf5 {[%emt 0:00:12]} a5 {[%emt 0:06:43]} 37. Rh1 {[%emt 0:01:08]} Rf8+ {[%emt 0:02:18]} 38. Ke5 {[%emt 0:00:09]} Rg8 {[%emt 0:16:03]} 39. Rh7+ {[%emt 0:00:11]} Ke8 {[%emt 0:00:35]} 40. Kf6 {[%emt 0:00:15]} Rf8+ {[%emt 0:00:16]} 41. Rf7 {[%emt 0:00:16]} Rg8 {[%emt 0:00:55]} 42. g6 {[%emt 0:00:17]} c5 {[%emt 0:01:15]} 43. g7 {[%emt 0:01:35]} b6 {[%emt 0:02:43]} 44. Ra7 {[%emt 0:00:35]} Kd8 {[%emt 0:00:09]} 45. Ra8+ {[%emt 0:00:02]} Kc7 {[%emt 0:00:03]} 46. Rxg8 {[%emt 0:00:04]} d4 {[%emt 0:00:04]} 47. Rc8+ {[%emt 0:00:16]} Kxc8 {[%emt 0:00:07]} 48. g8=Q+ {[%emt 0:00:04]} Kc7 {[%emt 0:00:05]} 49. cxd4 {[%emt 0:00:17]} cxd4 {[%emt 0:00:05]} 50. e7 {[%emt 0:00:06]} d3 {[%emt 0:00:04]} 51. e8=Q {[%emt 0:00:07]} d2 {[%emt 0:00:02]} 52. Qc4+ {[%emt 0:00:03]} Kd6 {[%emt 0:00:27]} 53. Qee6# {[%emt 0:00:09]} 1-0

[Event "EYCC Girls U10 2021"]
[Site "Tornelo"]
[Date "2021.10.15"]
[Round "7.3"]
[White "Kutateladze, Anastasia"]
[Black "Asachenko, Ksenia"]
[Result "1/2-1/2"]
[ECO "B47"]
[WhiteElo "1137"]
[BlackElo "1382"]
[Annotator "NA RC"]
[PlyCount "55"]
[EventDate "2021.10.15"]
[EventType "swiss"]
[EventCountry "NET"]
[SourceTitle "playchess.com"]
[Source "ChessBase"]
[SourceQuality "1"]
[TimeControl "5400+30"]

1. e4 {[%emt 0:00:30]} c5 {[%emt 0:01:19]} 2. Nf3 {[%emt 0:00:06]} e6 {[%emt 0:00:04]} 3. d4 {[%emt 0:00:05]} cxd4 {[%emt 0:00:03]} 4. Nxd4 {[%emt 0:00:06]} a6 {[%emt 0:00:03]} 5. Nc3 {[%emt 0:00:08]} Qc7 {[%emt 0:00:04]} 6. g3 {[%emt 0:00:06]} Nf6 {[%emt 0:00:07]} 7. Bg2 {[%emt 0:00:09]} Nc6 {[%emt 0:00:22]} 8. O-O {[%emt 0:00:41]} Be7 {[%emt 0:00:28]} 9. Re1 {[%emt 0:02:55]} Nxd4 {[%emt 0:10:02]} 10. Qxd4 {[%emt 0:01:03]} Bc5 {[%emt 0:05:13]} 11. Qd1 {[%emt 0:00:57]} Qb6 {[%emt 0:13:14]} 12. Rf1 {[%emt 0:03:26]} Qc7 {[%emt 0:03:36]} 13. Bg5 {[%emt 0:02:18]} Be7 {[%emt 0:01:45]} 14. Be3 {[%emt 0:02:06]} O-O {[%emt 0:11:39]} 15. Qe2 {[%emt 0:07:24]} d6 {[%emt 0:04:17]} 16. Rad1 {[%emt 0:01:43]} Bd7 {[%emt 0:01:11]} 17. f4 {[%emt 0:01:05]} Bc6 {[%emt 0:07:03]} 18. Bd4 {[%emt 0:02:56]} b5 {[%emt 0:02:56]} 19. Rfe1 {[%emt 0:08:09]} e5 {[%emt 0:06:25]} 20. Be3 {[%emt 0:02:23]} b4 {[%emt 0:05:23]} 21. Nd5 {[%emt 0:00:59]} Nxd5 {[%emt 0:02:10]} 22. exd5 {[%emt 0:01:06]} Bb5 {[%emt 0:01:47]} 23. Qf2 {[%emt 0:01:12]} Rac8 {[%emt 0:04:04]} 24. Rc1 {[%emt 0:01:23]} Qa5 {[%emt 0:02:11]} 25. Ra1 {[%emt 0:03:23]} Qc7 {[%emt 0:02:53]} 26. Rac1 {[%emt 0:00:37]} Qa5 {[%emt 0:00:44]} 27. Ra1 {[%emt 0:00:19]} Qc7 {[%emt 0:01:01]} 28. Rac1 {[%emt 0:00:40]} 1/2-1/2

[Event "EYCC Girls U10 2021"]
[Site "Tornelo"]
[Date "2021.10.15"]
[Round "7.4"]
[White "Aydogan, Arya"]
[Black "Sokolova, Regina"]
[Result "1-0"]
[ECO "B51"]
[WhiteElo "1250"]
[BlackElo "1364"]
[Annotator "NA RC"]
[PlyCount "145"]
[EventDate "2021.10.15"]
[EventType "swiss"]
[EventCountry "NET"]
[SourceTitle "playchess.com"]
[Source "ChessBase"]
[SourceQuality "1"]
[TimeControl "5400+30"]

1. e4 {[%emt 0:00:30]} c5 {[%emt 0:00:34]} 2. Nf3 {[%emt 0:00:05]} d6 {[%emt 0:00:04]} 3. Bb5+ {[%emt 0:00:05]} Nd7 {[%emt 0:00:03]} 4. O-O {[%emt 0:01:37]} Ngf6 {[%emt 0:00:10]} 5. Re1 {[%emt 0:02:01]} a6 {[%emt 0:00:23]} 6. Bf1 {[%emt 0:02:53]} g6 {[%emt 0:00:37]} 7. c3 {[%emt 0:00:30]} Bg7 {[%emt 0:00:29]} 8. d4 {[%emt 0:00:24]} cxd4 {[%emt 0:01:27]} 9. cxd4 {[%emt 0:00:05]} e6 {[%emt 0:05:13]} 10. Nc3 {[%emt 0:04:29]} O-O {[%emt 0:00:14]} 11. Bf4 {[%emt 0:03:20]} Nb8 {[%emt 0:16:56]} 12. Bg5 {[%emt 0:13:36]} h6 {[%emt 0:04:22]} 13. Bh4 {[%emt 0:03:40]} Qd7 {[%emt 0:21:31]} 14. Na4 {[%emt 0:23:06]} b5 {[%emt 0:07:03]} 15. Nb6 {[%emt 0:01:24]} Qb7 {[%emt 0:00:07]} 16. Nxa8 {[%emt 0:00:13]} Qxa8 {[%emt 0:00:03]} 17. Bd3 {[%emt 0:02:51]} Bb7 {[%emt 0:00:38]} 18. Qe2 {[%emt 0:00:35]} Nc6 {[%emt 0:00:25]} 19. Bxf6 {[%emt 0:05:01]} Bxf6 {[%emt 0:00:14]} 20. e5 {[%emt 0:00:06]} dxe5 {[%emt 0:00:22]} 21. dxe5 {[%emt 0:03:01]} Bg7 {[%emt 0:00:26]} 22. Be4 {[%emt 0:01:03]} Ne7 {[%emt 0:05:53]} 23. Bxb7 {[%emt 0:01:35]} Qxb7 {[%emt 0:00:07]} 24. Rac1 {[%emt 0:05:35]} Nd5 {[%emt 0:00:12]} 25. Qc2 {[%emt 0:00:48]} Qb8 {[%emt 0:01:30]} 26. a3 {[%emt 0:02:35]} Qa7 {[%emt 0:04:32]} 27. Qe4 {[%emt 0:04:24]} Rb8 {[%emt 0:01:52]} 28. Nd4 {[%emt 0:01:47]} Rf8 {[%emt 0:04:24]} 29. Nc6 {[%emt 0:00:48]} Qa8 {[%emt 0:01:18]} 30. Nb4 {[%emt 0:00:53]} Nxb4 {[%emt 0:00:27]} 31. Qxb4 {[%emt 0:02:17]} Qb8 {[%emt 0:06:20]} 32. f4 {[%emt 0:02:21]} Qa7+ {[%emt 0:08:51]} 33. Qc5 {[%emt 0:02:45]} Qb7 {[%emt 0:01:03]} 34. Kh1 {[%emt 0:03:46]} h5 {[%emt 0:01:49]} 35. Qd6 {[%emt 0:02:10]} Rc8 {[%emt 0:01:24]} 36. Rxc8+ {[%emt 0:00:24]} Qxc8 {[%emt 0:00:04]} 37. Rd1 {[%emt 0:00:39]} Qc2 {[%emt 0:01:02]} 38. Qd2 {[%emt 0:00:50]} Qc4 {[%emt 0:00:29]} 39. Rc1 {[%emt 0:00:46]} Qe4 {[%emt 0:00:45]} 40. Kg1 {[%emt 0:01:16]} Kh7 {[%emt 0:01:25]} 41. Qf2 {[%emt 0:01:19]} Qd3 {[%emt 0:01:28]} 42. Rc7 {[%emt 0:01:47]} Kg8 {[%emt 0:01:12]} 43. h3 {[%emt 0:01:01]} Bh6 {[%emt 0:00:58]} 44. Kh2 {[%emt 0:00:45]} Qe4 {[%emt 0:00:38]} 45. g3 {[%emt 0:00:14]} h4 {[%emt 0:00:47]} 46. Rc3 {[%emt 0:00:15]} hxg3+ {[%emt 0:00:43]} 47. Kxg3 {[%emt 0:00:02]} Bg7 {[%emt 0:00:34]} 48. h4 {[%emt 0:00:26]} Bh6 {[%emt 0:00:45]} 49. Rf3 {[%emt 0:00:48]} Kg7 {[%emt 0:00:28]} 50. Re3 {[%emt 0:00:31]} Qb1 {[%emt 0:00:26]} 51. Re1 {[%emt 0:00:26]} Qd3+ {[%emt 0:00:15]} 52. Qe3 {[%emt 0:00:34]} Qc2 {[%emt 0:00:40]} 53. Re2 {[%emt 0:00:22]} Qd1 {[%emt 0:00:30]} 54. b4 {[%emt 0:00:31]} Qa1 {[%emt 0:01:08]} 55. Kh2 {[%emt 0:00:46]} Qf1 {[%emt 0:00:42]} 56. Rf2 {[%emt 0:00:16]} Qc4 {[%emt 0:00:09]} 57. Qg3 {[%emt 0:00:10]} Kh7 {[%emt 0:00:51]} 58. Qf3 {[%emt 0:00:27]} Qd4 {[%emt 0:00:22]} 59. Qg3 {[%emt 0:00:32]} Qc4 {[%emt 0:00:30]} 60. Qf3 {[%emt 0:01:17]} Qd4 {[%emt 0:00:04]} 61. Kg3 {[%emt 0:00:38]} Qa1 {[%emt 0:01:18]} 62. h5 {[%emt 0:00:40]} Qg1+ {[%emt 0:00:42]} 63. Kh3 {[%emt 0:00:44]} Qb1 {[%emt 0:00:40]} 64. hxg6+ {[%emt 0:00:06]} fxg6 {[%emt 0:00:31]} 65. Qb7+ {[%emt 0:00:27]} Bg7 {[%emt 0:00:06]} 66. Rh2 {[%emt 0:00:23]} Qg1 {[%emt 0:00:48]} 67. Rh1 {[%emt 0:00:35]} Qd4 {[%emt 0:00:47]} 68. Kg4+ {[%emt 0:00:23]} Kg8 {[%emt 0:00:09]} 69. Qe7 {[%emt 0:00:37]} Qd3 {[%emt 0:01:25]} 70. Qe8+ {[%emt 0:00:22]} Bf8 {[%emt 0:00:07]} 71. Qxe6+ {[%emt 0:00:03]} Kg7 {[%emt 0:00:08]} 72. Qf6+ {[%emt 0:00:02]} Kg8 {[%emt 0:00:08]} 73. Rh8# {[%emt 0:00:03]} 1-0

[Event "EYCC Girls U10 2021"]
[Site "Tornelo"]
[Date "2021.10.15"]
[Round "7.6"]
[White "Lajdamik, Kinga"]
[Black "Zhou, Leyi Charlotte"]
[Result "0-1"]
[ECO "C84"]
[WhiteElo "1367"]
[BlackElo "1199"]
[Annotator "NA RC"]
[PlyCount "64"]
[EventDate "2021.10.15"]
[EventType "swiss"]
[EventCountry "NET"]
[SourceTitle "playchess.com"]
[Source "ChessBase"]
[SourceQuality "1"]
[TimeControl "5400+30"]

1. e4 {[%emt 0:00:30]} e5 {[%emt 0:00:37]} 2. Nf3 {[%emt 0:00:08]} Nc6 {[%emt 0:00:09]} 3. Bb5 {[%emt 0:00:08]} a6 {[%emt 0:00:21]} 4. Ba4 {[%emt 0:00:07]} Nf6 {[%emt 0:00:21]} 5. d4 {[%emt 0:00:17]} exd4 {[%emt 0:02:28]} 6. O-O {[%emt 0:00:10]} Be7 {[%emt 0:00:41]} 7. Nxd4 {[%emt 0:05:32]} O-O {[%emt 0:02:42]} 8. Re1 {[%emt 0:03:02]} b5 {[%emt 0:07:12]} 9. Nxc6 {[%emt 0:02:44]} dxc6 {[%emt 0:00:57]} 10. Qxd8 {[%emt 0:01:12]} Rxd8 {[%emt 0:00:23]} 11. Bb3 {[%emt 0:02:45]} Bc5 {[%emt 0:00:30]} 12. Nd2 {[%emt 0:19:54]} Ng4 {[%emt 0:02:07]} 13. Re2 {[%emt 0:05:41]} a5 {[%emt 0:01:46]} 14. a4 {[%emt 0:09:17]} b4 {[%emt 0:02:31]} 15. h3 {[%emt 0:01:40]} Ba6 {[%emt 0:01:12]} 16. hxg4 {[%emt 0:10:55]} Bxe2 {[%emt 0:01:23]} 17. c3 {[%emt 0:01:46]} bxc3 {[%emt 0:01:09]} 18. bxc3 {[%emt 0:00:08]} Rd6 {[%emt 0:01:11]} 19. Nf3 {[%emt 0:06:04]} Rb8 {[%emt 0:13:45]} 20. Bc2 {[%emt 0:10:55]} Rg6 {[%emt 0:02:50]} 21. Ne5 {[%emt 0:02:47]} Rd6 {[%emt 0:01:11]} 22. Bf4 {[%emt 0:02:18]} Ba7 {[%emt 0:05:27]} 23. Nf3 {[%emt 0:03:00]} Rd7 {[%emt 0:07:40]} 24. Ne5 {[%emt 0:00:13]} Rd6 {[%emt 0:00:28]} 25. Nf3 {[%emt 0:00:33]} Rf6 {[%emt 0:00:15]} 26. Bxc7 {[%emt 0:00:12]} Rb2 {[%emt 0:00:30]} 27. Bd1 {[%emt 0:01:40]} Bxf2+ {[%emt 0:03:16]} 28. Kxf2 {[%emt 0:00:55]} Bxf3+ {[%emt 0:01:03]} 29. Kg3 {[%emt 0:01:26]} Rxg2+ {[%emt 0:00:22]} 30. Kh4 {[%emt 0:00:19]} Rh6+ {[%emt 0:00:55]} 31. Kg5 {[%emt 0:00:08]} Rxg4+ {[%emt 0:00:15]} 32. Kf5 {[%emt 0:00:35]} Rh5# {[%emt 0:00:10]} 0-1

[Event "EYCC Girls U10 2021"]
[Site "Tornelo"]
[Date "2021.10.15"]
[Round "7.7"]
[White "Gratskova, Anastasia"]
[Black "Nahapetyan, Ani"]
[Result "1-0"]
[ECO "D05"]
[WhiteElo "1313"]
[BlackElo "1075"]
[Annotator "NA RC"]
[PlyCount "81"]
[EventDate "2021.10.15"]
[EventType "swiss"]
[EventCountry "NET"]
[SourceTitle "playchess.com"]
[Source "ChessBase"]
[SourceQuality "1"]
[TimeControl "5400+30"]

1. d4 {[%emt 0:00:30]} d5 {[%emt 0:00:36]} 2. Nf3 {[%emt 0:00:09]} e6 {[%emt 0:00:20]} 3. e3 {[%emt 0:00:07]} Nf6 {[%emt 0:00:21]} 4. Bd3 {[%emt 0:00:09]} c5 {[%emt 0:00:13]} 5. b3 {[%emt 0:00:04]} Nc6 {[%emt 0:01:06]} 6. Bb2 {[%emt 0:00:45]} Be7 {[%emt 0:03:08]} 7. Nbd2 {[%emt 0:00:17]} Bd7 {[%emt 0:00:58]} 8. a3 {[%emt 0:00:31]} Rc8 {[%emt 0:04:41]} 9. O-O {[%emt 0:00:25]} O-O {[%emt 0:00:47]} 10. Ne5 {[%emt 0:00:13]} Re8 {[%emt 0:03:57]} 11. f4 {[%emt 0:00:15]} Qb6 {[%emt 0:04:36]} 12. Nxc6 {[%emt 0:16:34]} Rxc6 {[%emt 0:02:41]} 13. Rb1 {[%emt 0:02:20]} Qd8 {[%emt 0:02:50]} 14. Nf3 {[%emt 0:00:54]} Rc8 {[%emt 0:02:52]} 15. Ne5 {[%emt 0:00:33]} a6 {[%emt 0:02:22]} 16. g4 {[%emt 0:03:21]} b5 {[%emt 0:02:04]} 17. g5 {[%emt 0:00:30]} Ne4 {[%emt 0:00:24]} 18. Bxe4 {[%emt 0:00:12]} dxe4 {[%emt 0:00:26]} 19. dxc5 {[%emt 0:00:28]} Bc6 {[%emt 0:01:21]} 20. Nxc6 {[%emt 0:01:22]} Rxc6 {[%emt 0:00:16]} 21. b4 {[%emt 0:00:06]} Qxd1 {[%emt 0:02:21]} 22. Rbxd1 {[%emt 0:00:18]} Rcc8 {[%emt 0:00:40]} 23. Rd4 {[%emt 0:02:22]} f5 {[%emt 0:00:51]} 24. Rd7 {[%emt 0:01:57]} Kf8 {[%emt 0:03:07]} 25. Rfd1 {[%emt 0:00:20]} Rc6 {[%emt 0:02:09]} 26. Be5 {[%emt 0:01:19]} Kg8 {[%emt 0:01:49]} 27. Rb7 {[%emt 0:00:41]} Bf8 {[%emt 0:02:16]} 28. Rdd7 {[%emt 0:03:24]} Rcc8 {[%emt 0:04:50]} 29. Bxg7 {[%emt 0:02:07]} Rcd8 {[%emt 0:01:01]} 30. Bxf8 {[%emt 0:04:30]} Kxf8 {[%emt 0:01:18]} 31. Rf7+ {[%emt 0:00:35]} Kg8 {[%emt 0:00:34]} 32. Rg7+ {[%emt 0:00:05]} Kh8 {[%emt 0:00:15]} 33. Rxh7+ {[%emt 0:00:04]} Kg8 {[%emt 0:00:02]} 34. Rhd7 {[%emt 0:00:09]} Rc8 {[%emt 0:00:34]} 35. h4 {[%emt 0:01:24]} Rcd8 {[%emt 0:00:37]} 36. h5 {[%emt 0:00:13]} Rc8 {[%emt 0:00:13]} 37. h6 {[%emt 0:00:10]} Rcd8 {[%emt 0:00:04]} 38. Rg7+ {[%emt 0:00:14]} Kh8 {[%emt 0:00:22]} 39. Rh7+ {[%emt 0:00:04]} Kg8 {[%emt 0:00:05]} 40. Rbg7+ {[%emt 0:00:02]} Kf8 {[%emt 0:00:01]} 41. Rh8# {[%emt 0:00:02]} 1-0

[Event "EYCC Girls U10 2021"]
[Site "Tornelo"]
[Date "2021.10.15"]
[Round "7.8"]
[White "Semenova, Vasilisa"]
[Black "Kuzmina, Sofya Vl"]
[Result "1-0"]
[ECO "D06"]
[WhiteElo "1305"]
[BlackElo "1102"]
[Annotator "NA RC"]
[PlyCount "89"]
[EventDate "2021.10.15"]
[EventType "swiss"]
[EventCountry "NET"]
[SourceTitle "playchess.com"]
[Source "ChessBase"]
[SourceQuality "1"]
[TimeControl "5400+30"]

1. Nf3 {[%emt 0:00:30]} d5 {[%emt 0:00:54]} 2. d4 {[%emt 0:00:05]} c5 {[%emt 0:00:11]} 3. c4 {[%emt 0:00:03]} cxd4 {[%emt 0:01:27]} 4. cxd5 {[%emt 0:00:12]} Qxd5 {[%emt 0:00:54]} 5. Nc3 {[%emt 0:00:06]} Qa5 {[%emt 0:00:32]} 6. Nxd4 {[%emt 0:00:09]} g6 {[%emt 0:00:37]} 7. e3 {[%emt 0:00:57]} Bg7 {[%emt 0:00:13]} 8. Bb5+ {[%emt 0:00:09]} Bd7 {[%emt 0:00:41]} 9. Bxd7+ {[%emt 0:00:17]} Nxd7 {[%emt 0:00:10]} 10. O-O {[%emt 0:00:12]} Ngf6 {[%emt 0:01:14]} 11. Bd2 {[%emt 0:00:16]} Qb6 {[%emt 0:00:36]} 12. Qb3 {[%emt 0:00:15]} Qc7 {[%emt 0:00:54]} 13. Ncb5 {[%emt 0:01:14]} Qb6 {[%emt 0:02:17]} 14. Qa3 {[%emt 0:01:55]} Qd8 {[%emt 0:06:38]} 15. Ba5 {[%emt 0:00:39]} Nb6 {[%emt 0:01:35]} 16. Rac1 {[%emt 0:04:01]} O-O {[%emt 0:01:04]} 17. Rfd1 {[%emt 0:01:28]} Nfd7 {[%emt 0:05:03]} 18. Qb3 {[%emt 0:01:56]} a6 {[%emt 0:01:11]} 19. Nc7 {[%emt 0:00:27]} Bxd4 {[%emt 0:06:20]} 20. Rxd4 {[%emt 0:00:31]} Rc8 {[%emt 0:02:54]} 21. Bxb6 {[%emt 0:00:35]} e5 {[%emt 0:00:28]} 22. Rd3 {[%emt 0:00:22]} Qe7 {[%emt 0:01:32]} 23. Rdc3 {[%emt 0:00:59]} Nf6 {[%emt 0:10:27]} 24. Bc5 {[%emt 0:00:53]} Qd7 {[%emt 0:02:22]} 25. Bxf8 {[%emt 0:00:29]} Kxf8 {[%emt 0:00:41]} 26. Ne6+ {[%emt 0:00:12]} fxe6 {[%emt 0:00:09]} 27. Rxc8+ {[%emt 0:00:04]} Ne8 {[%emt 0:00:07]} 28. Qb4+ {[%emt 0:00:07]} Kg8 {[%emt 0:00:15]} 29. Qb6 {[%emt 0:00:26]} Kf8 {[%emt 0:00:24]} 30. Qd8 {[%emt 0:00:11]} Qxd8 {[%emt 0:00:23]} 31. Rxd8 {[%emt 0:00:03]} Ke7 {[%emt 0:00:04]} 32. Rb8 {[%emt 0:00:05]} Nd6 {[%emt 0:00:13]} 33. Rc7+ {[%emt 0:00:04]} Kf6 {[%emt 0:00:06]} 34. h4 {[%emt 0:00:06]} e4 {[%emt 0:00:06]} 35. Rf8+ {[%emt 0:00:09]} Nf7 {[%emt 0:00:14]} 36. Rfxf7+ {[%emt 0:00:04]} Ke5 {[%emt 0:00:05]} 37. Rcd7 {[%emt 0:00:07]} g5 {[%emt 0:00:07]} 38. hxg5 {[%emt 0:00:05]} b5 {[%emt 0:00:06]} 39. Rxh7 {[%emt 0:00:07]} a5 {[%emt 0:00:09]} 40. Rhf7 {[%emt 0:00:21]} b4 {[%emt 0:00:12]} 41. g6 {[%emt 0:00:03]} b3 {[%emt 0:00:08]} 42. g7 {[%emt 0:00:19]} bxa2 {[%emt 0:00:09]} 43. g8=Q {[%emt 0:00:16]} a1=Q+ {[%emt 0:00:05]} 44. Kh2 {[%emt 0:00:04]} a4 {[%emt 0:00:13]} 45. Qg5# {[%emt 0:00:03]} 1-0